[Event "FIDE WYCC Open U14 2023"]
[Site "Montesilvano"]
[Date "2023.11.22"]
[Round "9.18"]
[White "Farias, David Nuno M E"]
[Black "Davudov, Tunar"]
[Result "0-1"]
[ECO "B41"]
[WhiteElo "2149"]
[BlackElo "2000"]
[Annotator "RC"]
[PlyCount "133"]
[EventDate "2023.11.13"]
[EventType "swiss"]
[EventCountry "ITA"]
[SourceTitle "playchess.com"]
[Source "ChessBase"]
[SourceQuality "1"]
[TimeControl "40/5400+30:1800+30"]

1. e4 {[%emt 0:00:01]} c5 {[%emt 0:00:14]} 2. Nf3 {[%emt 0:00:18]} e6 {[%emt 0:00:21]} 3. d4 {[%emt 0:00:28]} cxd4 {[%emt 0:00:27]} 4. Nxd4 {[%emt 0:00:08]} a6 {[%emt 0:00:28]} 5. c4 {[%emt 0:00:19]} Nf6 {[%emt 0:03:59]} 6. Nc3 {[%emt 0:00:25]} d6 {[%emt 0:03:45]} 7. Be2 {[%emt 0:05:39]} Be7 {[%emt 0:03:18]} 8. O-O {[%emt 0:02:02]} Qc7 {[%emt 0:02:04]} 9. Be3 {[%emt 0:02:05]} Nbd7 {[%emt 0:00:43]} 10. Qd2 {[%emt 0:04:51]} b6 {[%emt 0:01:51]} 11. f3 {[%emt 0:02:26]} Bb7 {[%emt 0:00:42]} 12. Rfc1 {[%emt 0:03:34]} O-O {[%emt 0:00:43]} 13. a3 {[%emt 0:05:56]} Rac8 {[%emt 0:01:09]} 14. b4 {[%emt 0:00:20]} Rfe8 {[%emt 0:04:53]} 15. Rab1 {[%emt 0:05:03]} Qb8 {[%emt 0:03:31]} 16. Kh1 {[%emt 0:02:49]} h5 {[%emt 0:05:37]} 17. Na4 {[%emt 0:05:33]} h4 {[%emt 0:06:37]} 18. Bf1 {[%emt 0:05:39]} Qa8 {[%emt 0:35:43]} 19. Nb3 {[%emt 0:20:23]} d5 {[%emt 0:10:46]} 20. cxd5 {[%emt 0:06:08]} exd5 {[%emt 0:03:30]} 21. e5 {[%emt 0:06:00]} Nxe5 {[%emt 0:04:13]} 22. Nxb6 {[%emt 0:03:48]} Rxc1 {[%emt 0:00:07]} 23. Rxc1 {[%emt 0:01:21]} Qb8 {[%emt 0:00:21]} 24. Nc5 {[%emt 0:01:57]} d4 {[%emt 0:01:52]} 25. Bxd4 {[%emt 0:08:33]} Nxf3 {[%emt 0:00:26]} 26. gxf3 {[%emt 0:00:58]} Bxf3+ {[%emt 0:00:06]} 27. Bg2 {[%emt 0:00:15]} Bxg2+ {[%emt 0:00:34]} 28. Qxg2 {[%emt 0:00:08]} Qxb6 {[%emt 0:00:10]} 29. Rf1 {[%emt 0:03:04]} Rd8 {[%emt 0:02:31]} 30. Bf2 {[%emt 0:02:59]} Nd5 {[%emt 0:03:33]} 31. Rd1 {[%emt 0:02:11]} Nc7 {[%emt 0:01:10]} 32. Rxd8+ {[%emt 0:00:31]} Bxd8 {[%emt 0:00:05]} 33. Bd4 {[%emt 0:00:35]} Bf6 {[%emt 0:00:21]} 34. Qe4 {[%emt 0:00:30]} Nb5 {[%emt 0:01:03]} 35. Qe8+ {[%emt 0:00:28]} Kh7 {[%emt 0:00:03]} 36. Qe4+ {[%emt 0:00:30]} g6 {[%emt 0:00:15]} 37. Bxf6 {[%emt 0:00:33]} Qxf6 {[%emt 0:00:01]} 38. Kg2 {[%emt 0:00:29]} Nxa3 {[%emt 0:00:54]} 39. Nd7 {[%emt 0:00:30]} Qb2+ {[%emt 0:01:21]} 40. Kh3 {[%emt 0:00:00]} Nc2 {[%emt 0:00:00]} 41. Qxh4+ {[%emt 0:16:49]} Kg7 {[%emt 0:00:46]} 42. Qe7 {[%emt 0:01:30]} Qc3+ {[%emt 0:14:21]} 43. Kg2 {[%emt 0:00:14]} Ne3+ {[%emt 0:10:11]} 44. Kf2 {[%emt 0:00:39]} Ng4+ {[%emt 0:01:44]} 45. Ke2 {[%emt 0:03:10]} Qc2+ {[%emt 0:01:34]} 46. Kf3 {[%emt 0:00:40]} Nxh2+ {[%emt 0:00:39]} 47. Ke3 {[%emt 0:00:07]} Ng4+ {[%emt 0:01:26]} 48. Kd4 {[%emt 0:02:30]} Qf5 {[%emt 0:00:45]} 49. Nc5 {[%emt 0:03:44]} Qf4+ {[%emt 0:02:17]} 50. Kd5 {[%emt 0:01:26]} Nf6+ {[%emt 0:01:01]} 51. Kc6 {[%emt 0:00:36]} Qf3+ {[%emt 0:00:13]} 52. Kd6 {[%emt 0:00:56]} Qf4+ {[%emt 0:00:33]} 53. Kc6 {[%emt 0:00:05]} Qf3+ {[%emt 0:00:02]} 54. Kd6 {[%emt 0:00:06]} Qd5+ {[%emt 0:00:06]} 55. Kc7 {[%emt 0:00:06]} Qc4 {[%emt 0:00:15]} 56. Kd8 {[%emt 0:05:05]} Qd4+ {[%emt 0:00:22]} 57. Kc8 {[%emt 0:00:04]} Qg4+ {[%emt 0:01:02]} 58. Kd8 {[%emt 0:00:24]} Qc4 {[%emt 0:01:21]} 59. Kc8 {[%emt 0:01:02]} g5 {[%emt 0:00:29]} 60. Qe5 {[%emt 0:00:37]} Kg6 {[%emt 0:00:17]} 61. Kc7 {[%emt 0:01:12]} Qxb4 {[%emt 0:00:25]} 62. Kc6 {[%emt 0:00:27]} g4 {[%emt 0:01:11]} 63. Qe3 {[%emt 0:00:17]} Qb5+ {[%emt 0:00:31]} 64. Kd6 {[%emt 0:00:02]} Qb6+ {[%emt 0:00:10]} 65. Ke5 {[%emt 0:00:20]} Qxc5+ {[%emt 0:00:05]} 66. Qxc5 {[%emt 0:00:04]} Nd7+ {[%emt 0:00:03]} 67. Kd4 0-1

[Event "FIDE WYCC Open U14 2023"]
[Site "Montesilvano"]
[Date "2023.11.22"]
[Round "9.19"]
[White "Nainys, Zanas"]
[Black "Arnold, Rhys"]
[Result "1/2-1/2"]
[ECO "A13"]
[WhiteElo "1974"]
[BlackElo "2146"]
[Annotator "RC"]
[PlyCount "96"]
[EventDate "2023.11.13"]
[EventType "swiss"]
[EventCountry "ITA"]
[SourceTitle "playchess.com"]
[Source "ChessBase"]
[SourceQuality "1"]
[TimeControl "40/5400+30:1800+30"]

1. c4 {[%emt 0:00:03]} e6 {[%emt 0:00:17]} 2. Nf3 {[%emt 0:00:06]} d5 {[%emt 0:00:01]} 3. e3 {[%emt 0:00:07]} Nf6 {[%emt 0:01:24]} 4. b3 {[%emt 0:00:20]} Be7 {[%emt 0:00:14]} 5. Bb2 {[%emt 0:00:13]} O-O {[%emt 0:00:09]} 6. Nc3 {[%emt 0:00:34]} c5 {[%emt 0:02:49]} 7. cxd5 {[%emt 0:04:11]} Nxd5 {[%emt 0:02:29]} 8. Nxd5 {[%emt 0:00:48]} Qxd5 {[%emt 0:01:08]} 9. Bc4 {[%emt 0:00:23]} Qd8 {[%emt 0:00:37]} 10. O-O {[%emt 0:01:01]} Nc6 {[%emt 0:09:32]} 11. Qe2 {[%emt 0:04:40]} Bf6 {[%emt 0:04:02]} 12. d4 {[%emt 0:13:01]} cxd4 {[%emt 0:04:51]} 13. exd4 {[%emt 0:00:04]} Ne7 {[%emt 0:11:40]} 14. Ne5 {[%emt 0:04:27]} Bd7 {[%emt 0:11:12]} 15. f4 {[%emt 0:11:47]} Bc6 {[%emt 0:03:57]} 16. Rad1 {[%emt 0:03:50]} Bd5 {[%emt 0:08:22]} 17. Ng4 {[%emt 0:03:57]} Nf5 {[%emt 0:04:41]} 18. Bd3 {[%emt 0:02:24]} Kh8 {[%emt 0:05:52]} 19. Bb1 {[%emt 0:02:58]} Rg8 {[%emt 0:04:00]} 20. Ne5 {[%emt 0:01:02]} Bxe5 {[%emt 0:07:31]} 21. fxe5 {[%emt 0:01:26]} a5 {[%emt 0:03:32]} 22. Bc1 {[%emt 0:08:10]} a4 {[%emt 0:02:32]} 23. Rd3 {[%emt 0:20:11]} g6 {[%emt 0:02:41]} 24. Rh3 {[%emt 0:01:07]} axb3 {[%emt 0:01:37]} 25. axb3 {[%emt 0:04:36]} Rc8 {[%emt 0:00:53]} 26. Qg4 {[%emt 0:01:26]} Rxc1 {[%emt 0:02:33]} 27. Rxc1 {[%emt 0:00:24]} Bc6 {[%emt 0:00:22]} 28. Re1 {[%emt 0:07:49]} Qa5 {[%emt 0:02:50]} 29. Rf1 {[%emt 0:02:24]} Qd2 {[%emt 0:00:27]} 30. Rd3 {[%emt 0:00:15]} Qb2 {[%emt 0:00:05]} 31. Qg5 {[%emt 0:01:09]} Ra8 {[%emt 0:00:31]} 32. Qd2 {[%emt 0:00:24]} Qxd2 {[%emt 0:01:20]} 33. Rxd2 {[%emt 0:00:01]} Ne3 {[%emt 0:00:07]} 34. Re1 {[%emt 0:00:11]} Ra1 {[%emt 0:00:40]} 35. Rxe3 {[%emt 0:01:43]} Rxb1+ {[%emt 0:00:05]} 36. Kf2 {[%emt 0:00:03]} Bd5 {[%emt 0:00:02]} 37. Rc3 {[%emt 0:00:38]} b5 {[%emt 0:00:17]} 38. Rc7 {[%emt 0:01:00]} Kg7 {[%emt 0:00:18]} 39. h3 {[%emt 0:00:27]} Rxb3 {[%emt 0:02:05]} 40. Kg1 {[%emt 0:00:00]} Rb1+ {[%emt 0:00:00]} 41. Kh2 {[%emt 0:00:35]} Rf1 {[%emt 0:00:06]} 42. Rb2 {[%emt 0:06:21]} b4 {[%emt 0:03:34]} 43. Rc5 {[%emt 0:01:43]} b3 {[%emt 0:00:26]} 44. Rxd5 {[%emt 0:00:02]} exd5 {[%emt 0:00:14]} 45. Rxb3 {[%emt 0:00:01]} Rd1 {[%emt 0:00:43]} 46. Rb4 {[%emt 0:00:30]} Kh6 {[%emt 0:06:53]} 47. Kg3 {[%emt 0:01:10]} Kg5 {[%emt 0:00:37]} 48. Kf3 {[%emt 0:03:29]} Rd2 {[%emt 0:00:27]} 1/2-1/2

[Event "FIDE WYCC Open U14 2023"]
[Site "Montesilvano"]
[Date "2023.11.22"]
[Round "9.20"]
[White "kiladze, Luka"]
[Black "Panda, Barnabas"]
[Result "1/2-1/2"]
[ECO "E11"]
[WhiteElo "2145"]
[BlackElo "1905"]
[Annotator "RC"]
[PlyCount "108"]
[EventDate "2023.11.13"]
[EventType "swiss"]
[EventCountry "ITA"]
[SourceTitle "playchess.com"]
[Source "ChessBase"]
[SourceQuality "1"]
[TimeControl "40/5400+30:1800+30"]

1. d4 {[%emt 0:00:02]} Nf6 {[%emt 0:00:11]} 2. c4 {[%emt 0:00:04]} e6 {[%emt 0:00:12]} 3. Nf3 {[%emt 0:00:04]} Bb4+ {[%emt 0:00:17]} 4. Nbd2 {[%emt 0:00:24]} b6 {[%emt 0:00:25]} 5. a3 {[%emt 0:00:14]} Bxd2+ {[%emt 0:00:17]} 6. Qxd2 {[%emt 0:00:54]} Bb7 {[%emt 0:00:15]} 7. e3 {[%emt 0:01:21]} Ne4 {[%emt 0:06:42]} 8. Qc2 {[%emt 0:02:33]} O-O {[%emt 0:00:22]} 9. Bd3 {[%emt 0:03:18]} f5 {[%emt 0:00:53]} 10. b3 {[%emt 0:02:34]} d6 {[%emt 0:08:40]} 11. Bb2 {[%emt 0:00:24]} Nd7 {[%emt 0:00:20]} 12. Rg1 {[%emt 0:05:44]} d5 {[%emt 0:18:30]} 13. O-O-O {[%emt 0:09:33]} Qe7 {[%emt 0:08:05]} 14. cxd5 {[%emt 0:05:28]} exd5 {[%emt 0:00:11]} 15. Ne5 {[%emt 0:01:37]} c5 {[%emt 0:07:37]} 16. Nxd7 {[%emt 0:04:29]} Qxd7 {[%emt 0:01:00]} 17. Bxe4 {[%emt 0:01:28]} fxe4 {[%emt 0:00:26]} 18. dxc5 {[%emt 0:00:11]} bxc5 {[%emt 0:01:37]} 19. f3 {[%emt 0:02:17]} Qe7 {[%emt 0:18:52]} 20. fxe4 {[%emt 0:01:59]} dxe4 {[%emt 0:00:55]} 21. Qc4+ {[%emt 0:08:56]} Qf7 {[%emt 0:03:05]} 22. Qxf7+ {[%emt 0:06:46]} Rxf7 {[%emt 0:00:07]} 23. Rd6 {[%emt 0:00:10]} Raf8 {[%emt 0:02:57]} 24. Rgd1 {[%emt 0:04:03]} Rf1 {[%emt 0:03:25]} 25. Be5 {[%emt 0:02:47]} Rxd1+ {[%emt 0:06:27]} 26. Kxd1 {[%emt 0:00:55]} Bc8 {[%emt 0:01:32]} 27. Bf4 {[%emt 0:10:27]} Bg4+ {[%emt 0:00:47]} 28. Kc2 {[%emt 0:00:09]} Rf6 {[%emt 0:04:52]} 29. Rxf6 {[%emt 0:02:02]} gxf6 {[%emt 0:00:06]} 30. Kc3 {[%emt 0:03:31]} Kf7 {[%emt 0:00:36]} 31. Bd6 {[%emt 0:00:14]} Ke6 {[%emt 0:01:20]} 32. Bxc5 {[%emt 0:00:13]} a6 {[%emt 0:00:10]} 33. Kd4 {[%emt 0:01:40]} f5 {[%emt 0:01:48]} 34. b4 {[%emt 0:01:52]} Bd1 {[%emt 0:00:32]} 35. g3 {[%emt 0:00:11]} Bc2 {[%emt 0:00:41]} 36. Bf8 {[%emt 0:00:17]} Bd1 {[%emt 0:00:22]} 37. Kc5 {[%emt 0:00:07]} Kd7 {[%emt 0:03:25]} 38. Kb6 {[%emt 0:00:14]} Be2 {[%emt 0:00:06]} 39. a4 {[%emt 0:01:14]} Bd3 {[%emt 0:00:41]} 40. Kb7 {[%emt 0:00:00]} Be2 {[%emt 0:00:00]} 41. Kb6 {[%emt 0:40:51]} Bd3 {[%emt 0:11:51]} 42. b5 {[%emt 0:04:28]} axb5 {[%emt 0:00:09]} 43. axb5 {[%emt 0:00:02]} Be2 {[%emt 0:08:15]} 44. Kc5 {[%emt 0:00:06]} Kc7 {[%emt 0:01:54]} 45. Bd6+ {[%emt 0:00:07]} Kb7 {[%emt 0:00:58]} 46. b6 {[%emt 0:00:22]} Bh5 {[%emt 0:01:27]} 47. Bc7 {[%emt 0:00:06]} Bf7 {[%emt 0:00:57]} 48. Kd6 {[%emt 0:00:14]} Bh5 {[%emt 0:05:05]} 49. Ke5 {[%emt 0:00:05]} Bg4 {[%emt 0:00:18]} 50. Kf6 {[%emt 0:00:10]} Kc6 {[%emt 0:00:20]} 51. Kg5 {[%emt 0:00:02]} h5 {[%emt 0:00:12]} 52. Kh4 {[%emt 0:00:16]} Be2 {[%emt 0:00:13]} 53. Bd8 {[%emt 0:04:21]} Kb7 {[%emt 0:00:38]} 54. h3 {[%emt 0:00:51]} Bf1 1/2-1/2

[Event "FIDE WYCC Open U14 2023"]
[Site "Montesilvano"]
[Date "2023.11.22"]
[Round "9.21"]
[White "Radzimski, Antoni"]
[Black "Hobson, Kenneth"]
[Result "0-1"]
[ECO "C44"]
[WhiteElo "1904"]
[BlackElo "2142"]
[Annotator "RC"]
[PlyCount "136"]
[EventDate "2023.11.13"]
[EventType "swiss"]
[EventCountry "ITA"]
[SourceTitle "playchess.com"]
[Source "ChessBase"]
[SourceQuality "1"]
[TimeControl "40/5400+30:1800+30"]

1. e4 {[%emt 0:00:12]} e5 {[%emt 0:00:42]} 2. Nf3 {[%emt 0:00:07]} Nc6 {[%emt 0:00:12]} 3. d4 {[%emt 0:00:23]} exd4 {[%emt 0:00:34]} 4. Nxd4 {[%emt 0:00:05]} Qf6 {[%emt 0:00:29]} 5. Nb3 {[%emt 0:01:45]} Qg6 {[%emt 0:01:15]} 6. Qe2 {[%emt 0:04:48]} a5 {[%emt 0:06:42]} 7. a4 {[%emt 0:05:57]} Nf6 {[%emt 0:01:58]} 8. f3 {[%emt 0:11:36]} Bb4+ {[%emt 0:04:22]} 9. c3 {[%emt 0:07:00]} Bd6 {[%emt 0:00:19]} 10. g3 {[%emt 0:02:57]} O-O {[%emt 0:03:57]} 11. Bg2 {[%emt 0:01:21]} b6 {[%emt 0:03:25]} 12. O-O {[%emt 0:04:01]} Re8 {[%emt 0:04:51]} 13. Rd1 {[%emt 0:03:16]} Bf8 {[%emt 0:03:32]} 14. Qf2 {[%emt 0:04:00]} Ba6 {[%emt 0:02:22]} 15. Nd4 {[%emt 0:06:15]} Ne5 {[%emt 0:03:59]} 16. Qc2 {[%emt 0:01:16]} c5 {[%emt 0:10:01]} 17. Ne2 {[%emt 0:04:57]} Bxe2 {[%emt 0:07:10]} 18. Qxe2 {[%emt 0:00:05]} c4 {[%emt 0:01:15]} 19. Be3 {[%emt 0:05:17]} d5 {[%emt 0:03:15]} 20. Nd2 {[%emt 0:03:03]} dxe4 {[%emt 0:06:18]} 21. fxe4 {[%emt 0:00:12]} Rac8 {[%emt 0:08:32]} 22. Bd4 {[%emt 0:04:45]} h5 {[%emt 0:03:22]} 23. Bxe5 {[%emt 0:03:14]} Rxe5 {[%emt 0:00:05]} 24. Nxc4 {[%emt 0:01:00]} Bc5+ {[%emt 0:01:05]} 25. Kh1 {[%emt 0:00:50]} Re6 {[%emt 0:04:41]} 26. Nd2 {[%emt 0:01:08]} Rce8 {[%emt 0:01:36]} 27. Rf1 {[%emt 0:01:46]} R6e7 {[%emt 0:03:56]} 28. Rae1 {[%emt 0:02:11]} Qh6 {[%emt 0:02:42]} 29. h3 {[%emt 0:07:37]} Qg5 {[%emt 0:01:16]} 30. Rf3 {[%emt 0:00:51]} h4 {[%emt 0:01:46]} 31. gxh4 {[%emt 0:03:05]} Qxh4 {[%emt 0:00:18]} 32. Rf5 {[%emt 0:00:34]} g6 {[%emt 0:01:54]} 33. Rxf6 {[%emt 0:05:01]} Qxf6 {[%emt 0:00:06]} 34. Rf1 {[%emt 0:00:04]} Qe5 {[%emt 0:01:24]} 35. Nc4 {[%emt 0:00:48]} Qg3 {[%emt 0:01:07]} 36. e5 {[%emt 0:00:33]} Rd8 {[%emt 0:01:19]} 37. Qe4 {[%emt 0:01:16]} Kg7 {[%emt 0:01:50]} 38. b4 {[%emt 0:01:05]} axb4 {[%emt 0:00:20]} 39. cxb4 {[%emt 0:00:03]} Bf2 {[%emt 0:02:47]} 40. Qe2 {[%emt 0:00:00]} Bd4 {[%emt 0:00:00]} 41. Rf3 {[%emt 0:05:05]} Qg5 {[%emt 0:03:52]} 42. Rd3 {[%emt 0:00:54]} Rc7 {[%emt 0:02:44]} 43. Rd1 {[%emt 0:01:10]} Qe7 {[%emt 0:03:41]} 44. b5 {[%emt 0:04:17]} Qe6 {[%emt 0:03:13]} 45. Bf1 {[%emt 0:01:07]} Rcc8 {[%emt 0:02:58]} 46. Qg4 {[%emt 0:02:21]} Qd5+ {[%emt 0:02:16]} 47. Qg2 {[%emt 0:00:16]} Qc5 {[%emt 0:01:01]} 48. Qe4 {[%emt 0:00:25]} Bc3 {[%emt 0:01:17]} 49. Rd6 {[%emt 0:00:25]} Qf2 {[%emt 0:01:18]} 50. Qg2 {[%emt 0:00:46]} Qc5 {[%emt 0:03:49]} 51. Qe4 {[%emt 0:02:17]} Rxd6 {[%emt 0:03:22]} 52. exd6 {[%emt 0:01:35]} Qd4 {[%emt 0:01:02]} 53. Qxd4+ {[%emt 0:03:58]} Bxd4 {[%emt 0:00:01]} 54. a5 {[%emt 0:00:20]} bxa5 {[%emt 0:00:23]} 55. Nxa5 {[%emt 0:01:36]} Kf6 {[%emt 0:02:47]} 56. Nc6 {[%emt 0:01:35]} Bb6 {[%emt 0:00:18]} 57. d7 {[%emt 0:01:51]} Rh8 {[%emt 0:00:06]} 58. Nb4 {[%emt 0:02:01]} Ke6 {[%emt 0:01:07]} 59. Bc4+ {[%emt 0:00:14]} Kxd7 {[%emt 0:00:08]} 60. Bxf7 {[%emt 0:00:03]} Rxh3+ {[%emt 0:00:37]} 61. Kg2 {[%emt 0:00:28]} Rh5 {[%emt 0:01:05]} 62. Nd5 {[%emt 0:02:14]} Rg5+ {[%emt 0:02:47]} 63. Kh3 {[%emt 0:00:47]} Bc7 {[%emt 0:00:43]} 64. b6 {[%emt 0:03:59]} Bb8 {[%emt 0:01:11]} 65. Nb4 {[%emt 0:01:06]} Rg3+ {[%emt 0:00:50]} 66. Kh4 {[%emt 0:00:09]} Rf3 {[%emt 0:00:51]} 67. Na6 {[%emt 0:02:12]} Rxf7 {[%emt 0:00:19]} 68. Nxb8+ {[%emt 0:00:05]} Kd6 {[%emt 0:00:22]} 0-1

[Event "FIDE WYCC Open U14 2023"]
[Site "Montesilvano"]
[Date "2023.11.22"]
[Round "9.22"]
[White "Warchol, Kamil"]
[Black "Chanturia, Giorgi"]
[Result "1-0"]
[ECO "B22"]
[WhiteElo "2095"]
[BlackElo "1668"]
[Annotator "NA RC"]
[PlyCount "49"]
[EventDate "2023.11.13"]
[EventType "swiss"]
[EventCountry "ITA"]
[SourceTitle "playchess.com"]
[Source "ChessBase"]
[SourceQuality "1"]
[TimeControl "40/5400+30:1800+30"]

1. e4 {[%emt 0:00:05]} c5 {[%emt 0:00:20]} 2. c3 {[%emt 0:00:17]} g6 {[%emt 0:02:41]} 3. Nf3 {[%emt 0:00:38]} Bg7 {[%emt 0:00:08]} 4. d4 {[%emt 0:00:39]} cxd4 {[%emt 0:00:05]} 5. cxd4 {[%emt 0:00:06]} d5 {[%emt 0:01:40]} 6. e5 {[%emt 0:00:26]} Bg4 {[%emt 0:00:18]} 7. Bb5+ {[%emt 0:06:43]} Nc6 {[%emt 0:00:28]} 8. Bxc6+ {[%emt 0:04:00]} bxc6 {[%emt 0:00:05]} 9. Nbd2 {[%emt 0:00:10]} Nh6 {[%emt 0:20:58]} 10. O-O {[%emt 0:07:55]} Qb6 {[%emt 0:08:08]} 11. h3 {[%emt 0:07:04]} Bxf3 {[%emt 0:00:44]} 12. Nxf3 {[%emt 0:00:14]} O-O {[%emt 0:02:15]} 13. Bf4 {[%emt 0:06:48]} f6 {[%emt 0:08:43]} 14. exf6 Rxf6 {[%emt 0:03:02]} 15. Be5 {[%emt 0:14:58]} Rf5 {[%emt 0:04:57]} 16. Bxg7 {[%emt 0:06:16]} Kxg7 {[%emt 0:00:02]} 17. Qe2 {[%emt 0:00:58]} Nf7 {[%emt 0:09:21]} 18. Qxe7 {[%emt 0:08:09]} Qxb2 {[%emt 0:04:07]} 19. Rab1 {[%emt 0:03:48]} Qxa2 {[%emt 0:13:38]} 20. Rb7 {[%emt 0:03:46]} Qa6 {[%emt 0:09:27]} 21. Ng5 {[%emt 0:06:15]} Re8 {[%emt 0:04:10]} 22. Ne6+ {[%emt 0:02:39]} Kh6 {[%emt 0:00:04]} 23. Qxe8 {[%emt 0:00:59]} Nd6 {[%emt 0:00:05]} 24. Qd8 {[%emt 0:00:52]} Nxb7 {[%emt 0:02:03]} 25. Qh4+ {[%emt 0:00:22]} 1-0

[Event "FIDE WYCC Open U14 2023"]
[Site "Montesilvano"]
[Date "2023.11.22"]
[Round "9.23"]
[White "Georgiadis, Anastasios"]
[Black "Villa Tornero, Alex"]
[Result "0-1"]
[ECO "A59"]
[WhiteElo "2001"]
[BlackElo "2383"]
[Annotator "RC"]
[PlyCount "88"]
[EventDate "2023.11.13"]
[EventType "swiss"]
[EventCountry "ITA"]
[SourceTitle "playchess.com"]
[Source "ChessBase"]
[SourceQuality "1"]
[TimeControl "40/5400+30:1800+30"]

1. d4 {[%emt 0:00:02]} Nf6 {[%emt 0:00:26]} 2. c4 {[%emt 0:00:05]} c5 {[%emt 0:00:08]} 3. d5 {[%emt 0:00:05]} b5 {[%emt 0:00:06]} 4. cxb5 {[%emt 0:00:16]} a6 {[%emt 0:00:08]} 5. bxa6 {[%emt 0:00:14]} g6 {[%emt 0:00:13]} 6. Nc3 {[%emt 0:00:21]} Bxa6 {[%emt 0:00:08]} 7. e4 {[%emt 0:00:32]} Bxf1 {[%emt 0:00:07]} 8. Kxf1 {[%emt 0:00:01]} d6 {[%emt 0:00:13]} 9. g3 {[%emt 0:00:47]} Bg7 {[%emt 0:00:07]} 10. Nf3 {[%emt 0:00:09]} Nbd7 {[%emt 0:00:50]} 11. Kg2 {[%emt 0:00:30]} O-O {[%emt 0:00:08]} 12. a4 {[%emt 0:00:24]} Qb6 {[%emt 0:01:15]} 13. Qe2 {[%emt 0:07:28]} Rfb8 {[%emt 0:03:38]} 14. Bd2 {[%emt 0:08:29]} Qa6 {[%emt 0:12:22]} 15. Nb5 {[%emt 0:05:49]} Ne8 {[%emt 0:22:27]} 16. Bc3 {[%emt 0:03:02]} Nc7 {[%emt 0:02:24]} 17. Bxg7 {[%emt 0:04:39]} Kxg7 {[%emt 0:01:49]} 18. Rhe1 {[%emt 0:05:50]} Nxb5 {[%emt 0:18:33]} 19. axb5 {[%emt 0:00:05]} Qb7 {[%emt 0:00:31]} 20. Rxa8 {[%emt 0:07:36]} Qxa8 {[%emt 0:02:41]} 21. b4 {[%emt 0:03:10]} Qa4 {[%emt 0:03:02]} 22. bxc5 {[%emt 0:01:55]} Nxc5 {[%emt 0:00:32]} 23. Qe3 {[%emt 0:07:41]} Rxb5 {[%emt 0:07:09]} 24. Nd2 {[%emt 0:11:33]} f6 {[%emt 0:04:22]} 25. h4 {[%emt 0:00:47]} Qc2 {[%emt 0:04:46]} 26. Nf3 {[%emt 0:05:34]} Rb3 {[%emt 0:02:29]} 27. Qe2 {[%emt 0:01:39]} Qc3 {[%emt 0:01:23]} 28. Qd1 {[%emt 0:03:16]} Rb2 {[%emt 0:03:19]} 29. Re2 {[%emt 0:01:44]} Rb4 {[%emt 0:00:06]} 30. Re3 {[%emt 0:03:19]} Qb2 {[%emt 0:00:14]} 31. Qd2 {[%emt 0:01:18]} Qb1 {[%emt 0:04:13]} 32. Re1 {[%emt 0:01:44]} Qb3 {[%emt 0:00:25]} 33. Nd4 {[%emt 0:02:16]} Qa4 {[%emt 0:01:03]} 34. Rd1 {[%emt 0:02:57]} h5 {[%emt 0:01:25]} 35. f3 {[%emt 0:02:18]} Rc4 {[%emt 0:00:57]} 36. Kh3 {[%emt 0:01:15]} Kh7 {[%emt 0:01:32]} 37. Nc6 {[%emt 0:04:31]} Rc2 {[%emt 0:00:25]} 38. Qe3 {[%emt 0:00:11]} Qa2 {[%emt 0:00:30]} 39. Rh1 {[%emt 0:00:09]} Re2 {[%emt 0:01:03]} 40. Qc3 {[%emt 0:00:00]} Rc2 {[%emt 0:00:00]} 41. Qd4 {[%emt 0:14:13]} e5 {[%emt 0:09:22]} 42. dxe6 {[%emt 0:10:31]} Qxe6+ {[%emt 0:00:57]} 43. g4 {[%emt 0:00:06]} hxg4+ {[%emt 0:00:20]} 44. fxg4 {[%emt 0:01:17]} Qb3+ {[%emt 0:00:07]} 0-1

[Event "FIDE WYCC Open U14 2023"]
[Site "Montesilvano"]
[Date "2023.11.22"]
[Round "9.24"]
[White "Sommer, Justus"]
[Black "Besou, Hussain"]
[Result "1-0"]
[ECO "B51"]
[WhiteElo "2013"]
[BlackElo "2341"]
[Annotator "RC"]
[PlyCount "83"]
[EventDate "2023.11.13"]
[EventType "swiss"]
[EventCountry "ITA"]
[SourceTitle "playchess.com"]
[Source "ChessBase"]
[SourceQuality "1"]
[TimeControl "40/5400+30:1800+30"]

1. e4 {[%emt 0:00:03]} c5 {[%emt 0:00:06]} 2. Nf3 {[%emt 0:00:07]} d6 {[%emt 0:00:03]} 3. Bb5+ {[%emt 0:00:17]} Nd7 {[%emt 0:00:05]} 4. d4 {[%emt 0:00:10]} cxd4 {[%emt 0:00:10]} 5. Qxd4 {[%emt 0:00:09]} a6 {[%emt 0:00:14]} 6. Bxd7+ {[%emt 0:00:10]} Bxd7 {[%emt 0:00:04]} 7. Nc3 {[%emt 0:00:47]} e5 {[%emt 0:02:34]} 8. Qd3 {[%emt 0:00:11]} h6 {[%emt 0:00:06]} 9. Nd2 {[%emt 0:01:11]} b5 {[%emt 0:20:11]} 10. a4 {[%emt 0:00:48]} Rb8 {[%emt 0:01:14]} 11. axb5 {[%emt 0:00:10]} axb5 {[%emt 0:00:05]} 12. Nf1 {[%emt 0:02:09]} Nf6 {[%emt 0:06:19]} 13. Ne3 {[%emt 0:03:29]} Be7 {[%emt 0:13:23]} 14. Ncd5 {[%emt 0:03:39]} Nxd5 {[%emt 0:01:15]} 15. Nxd5 {[%emt 0:00:16]} O-O {[%emt 0:00:18]} 16. Bd2 {[%emt 0:14:37]} Be6 {[%emt 0:04:05]} 17. Bb4 {[%emt 0:02:28]} Bxd5 {[%emt 0:04:43]} 18. Qxd5 {[%emt 0:00:34]} Qc7 {[%emt 0:01:51]} 19. c3 {[%emt 0:01:33]} Qb7 {[%emt 0:14:14]} 20. Qxb7 {[%emt 0:03:37]} Rxb7 {[%emt 0:00:35]} 21. Ke2 {[%emt 0:10:31]} f5 {[%emt 0:13:14]} 22. Rhd1 {[%emt 0:10:06]} fxe4 {[%emt 0:02:53]} 23. Bxd6 {[%emt 0:01:06]} Bxd6 {[%emt 0:01:09]} 24. Rxd6 {[%emt 0:00:04]} Rc8 {[%emt 0:01:57]} 25. Rc1 {[%emt 0:16:23]} Rbc7 {[%emt 0:05:00]} 26. Rb6 {[%emt 0:00:26]} Rc5 {[%emt 0:00:15]} 27. Rd1 {[%emt 0:01:14]} R8c7 {[%emt 0:02:17]} 28. Ke3 {[%emt 0:01:39]} Rf7 {[%emt 0:00:05]} 29. Rd2 {[%emt 0:04:10]} Kh7 {[%emt 0:00:21]} 30. Kxe4 {[%emt 0:01:01]} Rf4+ {[%emt 0:00:42]} 31. Ke3 {[%emt 0:00:09]} Rf7 {[%emt 0:01:00]} 32. f3 {[%emt 0:00:43]} h5 {[%emt 0:00:19]} 33. Rd8 {[%emt 0:01:16]} Re7 {[%emt 0:00:56]} 34. Rdb8 {[%emt 0:02:22]} e4 {[%emt 0:00:13]} 35. Rxb5 {[%emt 0:00:56]} exf3+ {[%emt 0:00:03]} 36. Kxf3 {[%emt 0:00:12]} Rc6 {[%emt 0:00:04]} 37. Rxh5+ {[%emt 0:01:54]} Kg6 {[%emt 0:00:03]} 38. Rh4 {[%emt 0:00:39]} Rce6 {[%emt 0:00:04]} 39. Rf4 {[%emt 0:01:19]} Re3+ {[%emt 0:00:06]} 40. Kg4 {[%emt 0:00:00]} Re2 {[%emt 0:00:00]} 41. Rb6+ {[%emt 0:01:10]} Kh7 {[%emt 0:00:07]} 42. Kh3 {[%emt 0:04:12]} 1-0